[Event "Cracovia Festival-A 2023"]
[Site "Krakow"]
[Date "2023.12.28"]
[Round "2.5"]
[White "Akbas, Umut Ata"]
[Black "Suder, Jakub"]
[Result "1-0"]
[ECO "B32"]
[WhiteElo "2446"]
[BlackElo "2312"]
[Annotator "ChessBase"]
[PlyCount "69"]
[EventDate "2023.12.24"]
[EventType "swiss"]
[EventCountry "POL"]
[SourceTitle "playchess.com"]
[Source "ChessBase"]
[SourceQuality "1"]
[TimeControl "40/5400+30:1800+30"]

1. e4 {[%emt 0:07:23]} c5 {[%emt 0:00:08]} 2. Nf3 {[%emt 0:00:06]} Nc6 {[%emt 0:00:10]} 3. d4 {[%emt 0:00:08]} cxd4 {[%emt 0:00:05]} 4. Nxd4 {[%emt 0:00:06]} e5 {[%emt 0:00:46]} 5. Nb5 {[%emt 0:00:35]} d6 {[%emt 0:00:29]} 6. N1c3 {[%emt 0:01:43]} a6 {[%emt 0:00:44]} 7. Na3 {[%emt 0:00:07]} b5 {[%emt 0:02:57]} 8. Nd5 {[%emt 0:00:15]} Nge7 {[%emt 0:01:10]} 9. c4 {[%emt 0:02:13]} Nd4 {[%emt 0:01:16]} 10. Bd3 {[%emt 0:02:33]} Nxd5 {[%emt 0:00:27]} 11. exd5 {[%emt 0:00:11]} g6 {[%emt 0:03:03]} 12. O-O {[%emt 0:02:26]} Bg7 {[%emt 0:01:27]} 13. cxb5 {[%emt 0:02:14]} O-O {[%emt 0:02:40]} 14. Be3 {[%emt 0:12:34]} Qh4 {[%emt 0:15:36]} 15. g3 {[%emt 0:10:36]} Qh3 {[%emt 0:03:27]} 16. Bxd4 {[%emt 0:00:27]} exd4 {[%emt 0:00:08]} 17. bxa6 {[%emt 0:14:23]} h5 {[%emt 0:07:48]} 18. Re1 {[%emt 0:14:45]} h4 {[%emt 0:04:33]} 19. Qe2 {[%emt 0:01:33]} hxg3 {[%emt 0:02:04]} 20. fxg3 {[%emt 0:01:34]} Be5 {[%emt 0:04:14]} 21. Qf2 {[%emt 0:02:47]} Rxa6 {[%emt 0:03:33]} 22. Bxa6 {[%emt 0:03:32]} Bxa6 {[%emt 0:00:22]} 23. Rac1 {[%emt 0:01:05]} Qh5 {[%emt 0:02:52]} 24. Nc2 {[%emt 0:08:21]} Bg7 {[%emt 0:09:49]} 25. Nb4 {[%emt 0:02:42]} Bb5 {[%emt 0:04:23]} 26. Rcd1 {[%emt 0:04:18]} Rc8 {[%emt 0:05:45]} 27. Nc6 {[%emt 0:02:38]} Rxc6 {[%emt 0:03:20]} 28. dxc6 {[%emt 0:00:06]} Bxc6 {[%emt 0:00:06]} 29. Rc1 {[%emt 0:00:48]} Bd5 {[%emt 0:00:37]} 30. Rc8+ {[%emt 0:02:36]} Kh7 {[%emt 0:00:35]} 31. Rd8 {[%emt 0:00:16]} Be5 {[%emt 0:01:34]} 32. Rd7 {[%emt 0:00:10]} Kg7 {[%emt 0:01:40]} 33. Rf1 {[%emt 0:00:16]} g5 {[%emt 0:02:35]} 34. Rxd6 {[%emt 0:00:30]} Bb7 {[%emt 0:01:58]} 35. Rd7 {[%emt 0:00:17]} 1-0

[Event "Cracovia Festival-A 2023"]
[Site "Krakow"]
[Date "2023.12.28"]
[Round "2.6"]
[White "Kowalczyk, Pawel"]
[Black "Soffer, Ram"]
[Result "0-1"]
[ECO "B40"]
[WhiteElo "2295"]
[BlackElo "2444"]
[Annotator "ChessBase"]
[PlyCount "84"]
[EventDate "2023.12.24"]
[EventType "swiss"]
[EventCountry "POL"]
[SourceTitle "playchess.com"]
[Source "ChessBase"]
[SourceQuality "1"]
[TimeControl "40/5400+30:1800+30"]

1. e4 {[%emt 0:00:04]} c5 {[%emt 0:00:07]} 2. Nf3 {[%emt 0:00:06]} e6 {[%emt 0:00:08]} 3. b3 {[%emt 0:00:04]} a6 {[%emt 0:00:19]} 4. Bb2 {[%emt 0:00:22]} Nc6 {[%emt 0:00:04]} 5. Be2 {[%emt 0:03:00]} d5 {[%emt 0:01:10]} 6. exd5 {[%emt 0:00:06]} exd5 {[%emt 0:00:08]} 7. O-O {[%emt 0:00:05]} Nf6 {[%emt 0:01:12]} 8. d4 {[%emt 0:00:05]} cxd4 {[%emt 0:02:12]} 9. Nxd4 {[%emt 0:00:22]} Bc5 {[%emt 0:03:43]} 10. Nxc6 {[%emt 0:04:15]} bxc6 {[%emt 0:03:21]} 11. c4 {[%emt 0:00:03]} O-O {[%emt 0:01:26]} 12. cxd5 {[%emt 0:13:16]} cxd5 {[%emt 0:00:23]} 13. Nc3 {[%emt 0:00:39]} d4 {[%emt 0:08:03]} 14. Na4 {[%emt 0:00:08]} Ba7 {[%emt 0:00:05]} 15. Bf3 {[%emt 0:01:12]} Rb8 {[%emt 0:00:15]} 16. Rc1 {[%emt 0:08:53]} Bf5 {[%emt 0:13:46]} 17. Rc6 {[%emt 0:13:27]} d3 {[%emt 0:04:03]} 18. Rxa6 {[%emt 0:01:31]} Bd4 {[%emt 0:03:12]} 19. Ba3 {[%emt 0:00:06]} Re8 {[%emt 0:00:13]} 20. Rd6 {[%emt 0:00:13]} Qe7 {[%emt 0:00:02]} 21. Qc1 {[%emt 0:00:32]} Qe5 {[%emt 0:02:35]} 22. Nb2 {[%emt 0:11:49]} Bxb2 {[%emt 0:09:17]} 23. Qxb2 {[%emt 0:00:06]} Qxb2 {[%emt 0:01:10]} 24. Bxb2 {[%emt 0:00:02]} Ne4 {[%emt 0:00:05]} 25. Rd5 {[%emt 0:09:43]} Nd2 {[%emt 0:05:44]} 26. Rd1 {[%emt 0:02:40]} Nxf3+ {[%emt 0:00:47]} 27. gxf3 {[%emt 0:00:08]} Bg6 {[%emt 0:01:54]} 28. Be5 {[%emt 0:02:16]} Rb7 {[%emt 0:01:45]} 29. h4 {[%emt 0:00:47]} f6 {[%emt 0:01:17]} 30. Bc3 {[%emt 0:01:27]} h5 {[%emt 0:01:15]} 31. f4 {[%emt 0:02:11]} Be4 {[%emt 0:01:50]} 32. Re1 {[%emt 0:02:53]} Rbe7 {[%emt 0:02:13]} 33. Rc5 {[%emt 0:01:45]} Bf3 {[%emt 0:06:33]} 34. Rxe7 {[%emt 0:00:48]} Rxe7 {[%emt 0:00:00]} 35. Kh2 {[%emt 0:00:08]} Re2 {[%emt 0:02:02]} 36. Kg3 {[%emt 0:00:55]} Be4 {[%emt 0:00:29]} 37. f5 {[%emt 0:06:21]} Rc2 {[%emt 0:03:16]} 38. Kf4 {[%emt 0:01:47]} Bg2 {[%emt 0:03:10]} 39. Rc8+ {[%emt 0:03:39]} Kf7 {[%emt 0:01:20]} 40. Rc7+ {[%emt 0:00:00]} Kg8 {[%emt 0:00:00]} 41. Rc8+ {[%emt 0:00:26]} Kh7 {[%emt 0:05:13]} 42. Kg3 {[%emt 0:01:22]} Bb7 {[%emt 0:04:05]} 0-1

[Event "Cracovia Festival-A 2023"]
[Site "Krakow"]
[Date "2023.12.28"]
[Round "2.7"]
[White "Kozak, Antoni"]
[Black "Kyc, Jerzy"]
[Result "1-0"]
[ECO "A05"]
[WhiteElo "2442"]
[BlackElo "2304"]
[Annotator "ChessBase"]
[PlyCount "67"]
[EventDate "2023.12.24"]
[EventType "swiss"]
[EventCountry "POL"]
[SourceTitle "playchess.com"]
[Source "ChessBase"]
[SourceQuality "1"]
[TimeControl "40/5400+30:1800+30"]

1. Nf3 {[%emt 0:00:09]} Nf6 {[%emt 0:00:26]} 2. c4 {[%emt 0:00:09]} c5 {[%emt 0:01:46]} 3. Nc3 {[%emt 0:00:06]} g6 {[%emt 0:00:18]} 4. e4 {[%emt 0:00:11]} Bg7 {[%emt 0:00:39]} 5. d4 {[%emt 0:00:44]} cxd4 {[%emt 0:00:50]} 6. Nxd4 {[%emt 0:00:10]} d6 {[%emt 0:00:38]} 7. Be2 {[%emt 0:00:19]} O-O {[%emt 0:01:17]} 8. O-O {[%emt 0:05:38]} Nc6 {[%emt 0:00:35]} 9. Nc2 {[%emt 0:04:00]} Nd7 {[%emt 0:10:31]} 10. Be3 {[%emt 0:00:07]} Nc5 {[%emt 0:00:38]} 11. Nd4 {[%emt 0:00:21]} Bd7 {[%emt 0:08:22]} 12. Re1 {[%emt 0:15:26]} Rc8 {[%emt 0:25:00]} 13. Rc1 {[%emt 0:08:33]} Nxd4 {[%emt 0:08:42]} 14. Bxd4 {[%emt 0:01:36]} Bc6 {[%emt 0:01:25]} 15. Bxg7 {[%emt 0:00:38]} Kxg7 {[%emt 0:00:03]} 16. b4 {[%emt 0:08:20]} Ne6 {[%emt 0:01:02]} 17. Nd5 {[%emt 0:04:51]} a5 {[%emt 0:01:19]} 18. a3 {[%emt 0:00:46]} axb4 {[%emt 0:03:59]} 19. axb4 {[%emt 0:00:09]} Kg8 {[%emt 0:05:36]} 20. Qd2 {[%emt 0:06:18]} Ng7 {[%emt 0:01:55]} 21. Qh6 {[%emt 0:12:27]} Bxd5 {[%emt 0:13:33]} 22. exd5 {[%emt 0:00:10]} Qb6 {[%emt 0:01:19]} 23. Qd2 {[%emt 0:01:56]} Rc7 {[%emt 0:03:35]} 24. Bf1 {[%emt 0:02:19]} Ra8 {[%emt 0:02:55]} 25. Qc3 {[%emt 0:05:35]} Rac8 {[%emt 0:04:06]} 26. g3 {[%emt 0:03:43]} e5 {[%emt 0:01:51]} 27. dxe6 {[%emt 0:00:06]} Nxe6 {[%emt 0:00:40]} 28. Rcd1 {[%emt 0:01:24]} Rc6 {[%emt 0:00:49]} 29. Bh3 {[%emt 0:05:14]} Re8 {[%emt 0:00:40]} 30. Qf6 {[%emt 0:03:39]} Ng7 {[%emt 0:00:28]} 31. Bd7 {[%emt 0:04:39]} Rxe1+ {[%emt 0:00:27]} 32. Rxe1 {[%emt 0:00:04]} Rxc4 {[%emt 0:00:34]} 33. Re7 {[%emt 0:00:32]} Rc1+ {[%emt 0:00:29]} 34. Kg2 {[%emt 0:00:04]} 1-0

[Event "Cracovia Festival-A 2023"]
[Site "Krakow"]
[Date "2023.12.28"]
[Round "2.8"]
[White "Cieslak, Patryk"]
[Black "Sofronie, Iulian"]
[Result "1/2-1/2"]
[ECO "C55"]
[WhiteElo "2284"]
[BlackElo "2438"]
[Annotator "ChessBase"]
[PlyCount "73"]
[EventDate "2023.12.24"]
[EventType "swiss"]
[EventCountry "POL"]
[SourceTitle "playchess.com"]
[Source "ChessBase"]
[SourceQuality "1"]
[TimeControl "40/5400+30:1800+30"]

1. e4 {[%emt 0:00:01]} e5 {[%emt 0:00:05]} 2. Nf3 {[%emt 0:00:02]} Nc6 {[%emt 0:00:06]} 3. Bc4 {[%emt 0:00:03]} Nf6 {[%emt 0:00:15]} 4. d3 {[%emt 0:00:02]} h6 {[%emt 0:00:09]} 5. O-O {[%emt 0:00:19]} d6 {[%emt 0:00:04]} 6. c3 {[%emt 0:00:48]} g6 {[%emt 0:00:17]} 7. d4 {[%emt 0:00:18]} Qe7 {[%emt 0:01:11]} 8. Re1 {[%emt 0:01:00]} Bg7 {[%emt 0:01:17]} 9. Nbd2 {[%emt 0:00:17]} O-O {[%emt 0:01:21]} 10. h3 {[%emt 0:00:27]} Na5 {[%emt 0:09:37]} 11. Bf1 {[%emt 0:01:22]} c5 {[%emt 0:00:57]} 12. b4 {[%emt 0:01:15]} cxb4 {[%emt 0:01:33]} 13. cxb4 {[%emt 0:00:03]} Nc6 {[%emt 0:00:13]} 14. b5 {[%emt 0:00:13]} Nxd4 {[%emt 0:01:46]} 15. Nxd4 {[%emt 0:00:32]} exd4 {[%emt 0:00:04]} 16. Ba3 {[%emt 0:00:14]} Ne8 {[%emt 0:16:09]} 17. Nc4 {[%emt 0:26:24]} Qg5 {[%emt 0:14:12]} 18. Nxd6 {[%emt 0:05:03]} Nxd6 {[%emt 0:06:03]} 19. Bxd6 {[%emt 0:00:40]} Rd8 {[%emt 0:00:14]} 20. Bc7 {[%emt 0:12:06]} Rd7 {[%emt 0:07:09]} 21. Rc1 {[%emt 0:00:40]} b6 {[%emt 0:00:33]} 22. Bh2 {[%emt 0:07:34]} Bb7 {[%emt 0:02:22]} 23. Bd3 {[%emt 0:00:48]} Re8 {[%emt 0:02:45]} 24. f4 {[%emt 0:01:24]} Qe7 {[%emt 0:01:04]} 25. Qd2 {[%emt 0:02:19]} Rc7 {[%emt 0:05:47]} 26. Rxc7 {[%emt 0:03:25]} Qxc7 {[%emt 0:01:22]} 27. f5 {[%emt 0:13:57]} Qc3 {[%emt 0:02:16]} 28. Qxc3 {[%emt 0:00:41]} dxc3 {[%emt 0:00:04]} 29. fxg6 {[%emt 0:01:09]} Bd4+ {[%emt 0:00:31]} 30. Kf1 {[%emt 0:02:18]} fxg6 {[%emt 0:00:11]} 31. Bd6 {[%emt 0:00:08]} Kg7 {[%emt 0:09:44]} 32. Bb4 {[%emt 0:05:15]} Kf6 {[%emt 0:06:13]} 33. Re2 {[%emt 0:05:48]} Ke5 {[%emt 0:04:01]} 34. Ke1 {[%emt 0:00:20]} Ra8 {[%emt 0:02:34]} 35. Rc2 {[%emt 0:05:19]} Rc8 36. Kd1 Rc7 37. Re2 1/2-1/2

[Event "Cracovia Festival-A 2023"]
[Site "Krakow"]
[Date "2023.12.28"]
[Round "2.9"]
[White "Schwabeneder, Florian"]
[Black "Ashwath, R.."]
[Result "1-0"]
[ECO "A10"]
[WhiteElo "2402"]
[BlackElo "2284"]
[Annotator "ChessBase"]
[PlyCount "47"]
[EventDate "2023.12.24"]
[EventType "swiss"]
[EventCountry "POL"]
[SourceTitle "playchess.com"]
[Source "ChessBase"]
[SourceQuality "1"]
[TimeControl "40/5400+30:1800+30"]

1. c4 {[%emt 0:00:08]} f5 {[%emt 0:02:31]} 2. Nf3 {[%emt 0:03:24]} Nf6 {[%emt 0:00:26]} 3. g3 {[%emt 0:00:23]} Nc6 {[%emt 0:05:16]} 4. d4 {[%emt 0:14:38]} e6 {[%emt 0:00:56]} 5. Bg2 {[%emt 0:00:15]} d5 {[%emt 0:01:19]} 6. Nc3 {[%emt 0:00:11]} Ne4 {[%emt 0:03:24]} 7. cxd5 {[%emt 0:08:29]} exd5 {[%emt 0:03:37]} 8. Qb3 {[%emt 0:02:10]} Ne7 {[%emt 0:08:55]} 9. Ne5 {[%emt 0:03:34]} Nxc3 {[%emt 0:09:44]} 10. bxc3 {[%emt 0:01:10]} c6 {[%emt 0:00:31]} 11. O-O {[%emt 0:05:22]} Ng6 {[%emt 0:01:47]} 12. Nxg6 {[%emt 0:01:44]} hxg6 {[%emt 0:00:03]} 13. c4 {[%emt 0:00:09]} dxc4 {[%emt 0:04:19]} 14. Qxc4 {[%emt 0:00:58]} Qf6 {[%emt 0:03:01]} 15. e4 {[%emt 0:16:54]} fxe4 {[%emt 0:17:43]} 16. Bxe4 {[%emt 0:15:10]} Bd6 {[%emt 0:07:28]} 17. Rb1 {[%emt 0:05:03]} Kf8 {[%emt 0:05:03]} 18. Rb3 {[%emt 0:01:46]} Rh5 {[%emt 0:04:58]} 19. d5 {[%emt 0:05:56]} c5 {[%emt 0:03:59]} 20. Bb2 {[%emt 0:02:11]} Qg5 {[%emt 0:00:53]} 21. Qc2 {[%emt 0:04:52]} Kf7 {[%emt 0:07:57]} 22. f4 {[%emt 0:00:27]} Qh6 {[%emt 0:00:16]} 23. Be5 {[%emt 0:01:14]} Bf8 {[%emt 0:04:45]} 24. d6 {[%emt 0:00:51]} 1-0

[Event "Cracovia Festival-A 2023"]
[Site "Krakow"]
[Date "2023.12.28"]
[Round "2.10"]
[White "Marszalek, Maciej"]
[Black "Dzida, Kamil"]
[Result "0-1"]
[ECO "A22"]
[WhiteElo "2269"]
[BlackElo "2396"]
[Annotator "ChessBase"]
[PlyCount "84"]
[EventDate "2023.12.24"]
[EventType "swiss"]
[EventCountry "POL"]
[SourceTitle "playchess.com"]
[Source "ChessBase"]
[SourceQuality "1"]
[TimeControl "40/5400+30:1800+30"]

1. c4 {[%emt 0:00:06]} e5 {[%emt 0:00:08]} 2. Nc3 {[%emt 0:00:05]} Nf6 {[%emt 0:00:09]} 3. g3 {[%emt 0:01:05]} c6 {[%emt 0:00:06]} 4. Nf3 {[%emt 0:01:21]} e4 {[%emt 0:00:17]} 5. Nd4 {[%emt 0:00:06]} Qb6 {[%emt 0:00:04]} 6. Nb3 {[%emt 0:02:45]} d5 {[%emt 0:06:22]} 7. cxd5 {[%emt 0:02:15]} cxd5 {[%emt 0:00:11]} 8. d4 {[%emt 0:02:07]} Be6 {[%emt 0:04:10]} 9. Bg2 {[%emt 0:00:46]} Nbd7 {[%emt 0:02:19]} 10. Bf4 {[%emt 0:05:58]} a5 {[%emt 0:07:32]} 11. a4 {[%emt 0:01:32]} Bb4 {[%emt 0:00:30]} 12. O-O {[%emt 0:00:44]} O-O {[%emt 0:08:09]} 13. Nb5 {[%emt 0:07:52]} Rfc8 {[%emt 0:01:55]} 14. Rc1 {[%emt 0:02:56]} Rc6 {[%emt 0:03:17]} 15. Rxc6 {[%emt 0:01:12]} bxc6 {[%emt 0:03:00]} 16. Nc7 {[%emt 0:00:34]} Rc8 {[%emt 0:01:59]} 17. Nxe6 {[%emt 0:00:08]} fxe6 {[%emt 0:00:05]} 18. Bh3 {[%emt 0:01:15]} Kf7 {[%emt 0:06:09]} 19. f3 {[%emt 0:01:57]} exf3 {[%emt 0:02:10]} 20. Rxf3 {[%emt 0:03:32]} c5 {[%emt 0:03:28]} 21. dxc5 {[%emt 0:02:19]} Nxc5 {[%emt 0:06:59]} 22. Nd4 {[%emt 0:03:07]} Kg8 {[%emt 0:01:43]} 23. Be3 {[%emt 0:03:58]} Re8 {[%emt 0:06:06]} 24. Nc2 {[%emt 0:06:18]} Qd6 {[%emt 0:00:11]} 25. Nxb4 {[%emt 0:03:18]} axb4 {[%emt 0:00:01]} 26. Rf1 {[%emt 0:13:20]} e5 {[%emt 0:01:05]} 27. Bg2 {[%emt 0:02:14]} d4 {[%emt 0:08:03]} 28. Bd2 {[%emt 0:00:22]} d3 {[%emt 0:03:11]} 29. e3 {[%emt 0:05:47]} Rb8 {[%emt 0:01:12]} 30. a5 {[%emt 0:04:12]} Nfe4 {[%emt 0:05:13]} 31. a6 {[%emt 0:13:15]} Nxd2 {[%emt 0:05:39]} 32. Qxd2 {[%emt 0:01:06]} Nxa6 {[%emt 0:00:08]} 33. Rc1 {[%emt 0:01:23]} Nc5 {[%emt 0:01:53]} 34. Rc4 {[%emt 0:00:07]} Nb3 {[%emt 0:00:48]} 35. Qd1 {[%emt 0:00:01]} Na5 {[%emt 0:00:18]} 36. Rh4 {[%emt 0:02:22]} d2 {[%emt 0:01:56]} 37. Bf3 {[%emt 0:00:21]} Rd8 {[%emt 0:01:51]} 38. Kg2 {[%emt 0:00:35]} Qd3 {[%emt 0:02:11]} 39. Be4 {[%emt 0:00:31]} Nc4 {[%emt 0:00:30]} 40. Bxh7+ {[%emt 0:00:00]} Qxh7 {[%emt 0:00:00]} 41. Rxc4 {[%emt 0:05:14]} Qd3 {[%emt 0:06:56]} 42. Rxb4 {[%emt 0:00:47]} Rf8 {[%emt 0:00:16]} 0-1

[Event "Cracovia Festival-A 2023"]
[Site "Krakow"]
[Date "2023.12.28"]
[Round "2.11"]
[White "Bogdanov, Egor"]
[Black "Mirski, Stanislaw"]
[Result "1-0"]
[ECO "B40"]
[WhiteElo "2394"]
[BlackElo "2187"]
[Annotator "ChessBase"]
[PlyCount "69"]
[EventDate "2023.12.24"]
[EventType "swiss"]
[EventCountry "POL"]
[SourceTitle "playchess.com"]
[Source "ChessBase"]
[SourceQuality "1"]
[TimeControl "40/5400+30:1800+30"]

1. e4 {[%emt 0:00:01]} c5 {[%emt 0:03:51]} 2. Nf3 {[%emt 0:02:01]} e6 {[%emt 0:00:02]} 3. c3 {[%emt 0:00:07]} d5 {[%emt 0:02:33]} 4. exd5 {[%emt 0:00:10]} Qxd5 {[%emt 0:04:33]} 5. d4 {[%emt 0:00:06]} Nf6 {[%emt 0:02:49]} 6. Na3 {[%emt 0:00:05]} cxd4 {[%emt 0:05:46]} 7. Nb5 {[%emt 0:00:19]} Na6 {[%emt 0:00:03]} 8. Nbxd4 {[%emt 0:03:48]} Be7 {[%emt 0:01:30]} 9. Be2 {[%emt 0:03:34]} O-O {[%emt 0:02:25]} 10. O-O {[%emt 0:00:35]} Rd8 {[%emt 0:05:06]} 11. Bf4 {[%emt 0:08:39]} Bd6 {[%emt 0:17:06]} 12. Bg5 {[%emt 0:05:20]} h6 {[%emt 0:05:52]} 13. Bxf6 {[%emt 0:05:43]} gxf6 {[%emt 0:00:02]} 14. Qc2 {[%emt 0:01:31]} Bf8 {[%emt 0:06:41]} 15. Rfd1 {[%emt 0:06:39]} Bd7 {[%emt 0:01:02]} 16. Rd2 {[%emt 0:08:51]} Be8 {[%emt 0:02:38]} 17. Re1 {[%emt 0:05:03]} Qxa2 {[%emt 0:22:24]} 18. Qe4 {[%emt 0:03:38]} Qa5 {[%emt 0:00:02]} 19. Bc4 {[%emt 0:09:28]} Nc7 {[%emt 0:07:22]} 20. Qh4 {[%emt 0:07:59]} Bg7 {[%emt 0:00:52]} 21. Qg3 {[%emt 0:05:02]} Bc6 {[%emt 0:06:39]} 22. b4 {[%emt 0:07:44]} Qb6 {[%emt 0:00:01]} 23. Nh4 {[%emt 0:01:17]} Bd7 {[%emt 0:00:49]} 24. Ndf5 {[%emt 0:04:49]} Ne8 {[%emt 0:00:07]} 25. Nxh6+ {[%emt 0:00:28]} Kf8 {[%emt 0:00:01]} 26. Qg6 {[%emt 0:05:21]} Nd6 {[%emt 0:01:53]} 27. Qh7 {[%emt 0:03:32]} Bxh6 {[%emt 0:00:02]} 28. Qxh6+ {[%emt 0:00:02]} Ke7 {[%emt 0:00:01]} 29. Qg7 {[%emt 0:00:52]} Be8 {[%emt 0:00:02]} 30. Rxe6+ {[%emt 0:00:26]} Kd7 {[%emt 0:00:17]} 31. Rexd6+ {[%emt 0:00:02]} Qxd6 {[%emt 0:01:11]} 32. Rxd6+ {[%emt 0:00:02]} Kxd6 {[%emt 0:00:01]} 33. Qxf6+ {[%emt 0:00:10]} Kc7 {[%emt 0:00:06]} 34. Qf4+ {[%emt 0:00:14]} Kc6 {[%emt 0:00:08]} 35. h3 {[%emt 0:00:16]} 1-0

[Event "Cracovia Festival-A 2023"]
[Site "Krakow"]
[Date "2023.12.28"]
[Round "2.12"]
[White "Sieciechowicz, Marcin"]
[Black "Valiyev, Shahin"]
[Result "1-0"]
[ECO "D31"]
[WhiteElo "2391"]
[BlackElo "2158"]
[Annotator "ChessBase"]
[PlyCount "81"]
[EventDate "2023.12.24"]
[EventType "swiss"]
[EventCountry "POL"]
[SourceTitle "playchess.com"]
[Source "ChessBase"]
[SourceQuality "1"]
[TimeControl "40/5400+30:1800+30"]

1. d4 {[%emt 0:03:15]} d5 {[%emt 0:00:31]} 2. c4 {[%emt 0:00:07]} e6 {[%emt 0:00:14]} 3. Nc3 {[%emt 0:00:05]} Be7 {[%emt 0:00:15]} 4. cxd5 {[%emt 0:00:18]} exd5 {[%emt 0:00:05]} 5. Bf4 {[%emt 0:00:05]} c6 {[%emt 0:00:14]} 6. e3 {[%emt 0:00:08]} Bf5 {[%emt 0:00:24]} 7. g4 {[%emt 0:00:06]} Be6 {[%emt 0:01:35]} 8. h4 {[%emt 0:00:15]} Nd7 {[%emt 0:01:35]} 9. g5 {[%emt 0:00:11]} h6 {[%emt 0:02:57]} 10. g6 {[%emt 0:00:22]} Ngf6 {[%emt 0:03:29]} 11. Bd3 {[%emt 0:00:15]} O-O {[%emt 0:07:54]} 12. gxf7+ {[%emt 0:00:29]} Bxf7 {[%emt 0:00:34]} 13. Qf3 {[%emt 0:00:12]} Ne4 {[%emt 0:32:16]} 14. Nge2 {[%emt 0:13:18]} Bb4 {[%emt 0:14:03]} 15. Bxe4 {[%emt 0:09:34]} dxe4 {[%emt 0:00:10]} 16. Qg2 {[%emt 0:01:03]} Kh8 {[%emt 0:12:25]} 17. a3 {[%emt 0:04:01]} Bxc3+ {[%emt 0:03:43]} 18. Nxc3 {[%emt 0:00:10]} Nf6 {[%emt 0:00:52]} 19. Rg1 {[%emt 0:02:18]} Rg8 {[%emt 0:01:11]} 20. Be5 {[%emt 0:01:01]} Bh5 {[%emt 0:11:03]} 21. Nxe4 {[%emt 0:03:35]} Qa5+ {[%emt 0:01:56]} 22. Nc3 {[%emt 0:04:42]} Rae8 {[%emt 0:00:02]} 23. f3 {[%emt 0:10:47]} Rxe5 {[%emt 0:02:44]} 24. dxe5 {[%emt 0:00:12]} Qxe5 {[%emt 0:00:04]} 25. O-O-O {[%emt 0:07:36]} Qxe3+ {[%emt 0:00:18]} 26. Qd2 {[%emt 0:01:15]} Qxd2+ {[%emt 0:01:06]} 27. Rxd2 {[%emt 0:00:11]} Bxf3 {[%emt 0:00:06]} 28. Rf1 {[%emt 0:00:33]} Bh5 {[%emt 0:01:28]} 29. Re1 {[%emt 0:00:06]} Re8 {[%emt 0:01:12]} 30. Rxe8+ {[%emt 0:00:10]} Bxe8 {[%emt 0:00:04]} 31. Rd8 {[%emt 0:00:05]} Kh7 {[%emt 0:00:36]} 32. Ne4 {[%emt 0:01:52]} Nxe4 {[%emt 0:00:38]} 33. Rxe8 {[%emt 0:00:02]} Nd6 {[%emt 0:00:38]} 34. Re7 {[%emt 0:01:02]} a5 {[%emt 0:00:16]} 35. h5 {[%emt 0:01:06]} Kg8 {[%emt 0:00:46]} 36. Rd7 {[%emt 0:01:03]} Ne4 {[%emt 0:00:30]} 37. Rxb7 {[%emt 0:00:23]} Nf6 {[%emt 0:00:07]} 38. b4 {[%emt 0:01:08]} axb4 {[%emt 0:00:07]} 39. a4 {[%emt 0:00:26]} Ne4 {[%emt 0:01:10]} 40. Rxb4 {[%emt 0:00:00]} Nc5 {[%emt 0:00:00]} 41. Rc4 {[%emt 0:00:54]} 1-0

[Event "Cracovia Festival-A 2023"]
[Site "Krakow"]
[Date "2023.12.28"]
[Round "2.13"]
[White "Balint, Peter"]
[Black "Baumegger, Siegfried"]
[Result "1/2-1/2"]
[ECO "B30"]
[WhiteElo "2187"]
[BlackElo "2388"]
[Annotator "ChessBase"]
[PlyCount "40"]
[EventDate "2023.12.24"]
[EventType "swiss"]
[EventCountry "POL"]
[SourceTitle "playchess.com"]
[Source "ChessBase"]
[SourceQuality "1"]
[TimeControl "40/5400+30:1800+30"]

1. e4 {[%emt 0:00:04]} c5 {[%emt 0:00:13]} 2. Nf3 {[%emt 0:00:15]} Nc6 {[%emt 0:00:12]} 3. Bb5 {[%emt 0:00:11]} Nf6 {[%emt 0:00:55]} 4. Nc3 {[%emt 0:03:14]} Qc7 {[%emt 0:01:11]} 5. O-O {[%emt 0:09:23]} Nd4 {[%emt 0:00:21]} 6. a4 {[%emt 0:07:49]} e6 {[%emt 0:03:41]} 7. Re1 {[%emt 0:05:52]} Bd6 {[%emt 0:05:28]} 8. h3 {[%emt 0:04:03]} Nxf3+ {[%emt 0:01:12]} 9. Qxf3 {[%emt 0:02:04]} Bh2+ {[%emt 0:02:03]} 10. Kh1 {[%emt 0:03:44]} Be5 {[%emt 0:00:10]} 11. Bf1 {[%emt 0:07:30]} O-O {[%emt 0:06:54]} 12. Nb5 {[%emt 0:05:32]} Qb8 {[%emt 0:12:45]} 13. c3 {[%emt 0:05:59]} d5 {[%emt 0:01:58]} 14. exd5 {[%emt 0:02:26]} Nxd5 {[%emt 0:00:46]} 15. d4 {[%emt 0:03:33]} cxd4 {[%emt 0:00:26]} 16. cxd4 {[%emt 0:06:57]} Bf6 {[%emt 0:09:02]} 17. Nc3 {[%emt 0:05:53]} Qd6 {[%emt 0:03:36]} 18. Nxd5 {[%emt 0:09:31]} Qxd5 {[%emt 0:01:18]} 19. Qxd5 {[%emt 0:00:08]} exd5 {[%emt 0:00:05]} 20. Bf4 {[%emt 0:00:14]} Be6 {[%emt 0:09:17]} 1/2-1/2

[Event "Cracovia Festival-A 2023"]
[Site "Krakow"]
[Date "2023.12.28"]
[Round "2.14"]
[White "Podolskyi, Mykhailo"]
[Black "Karolczuk, Iwo"]
[Result "1/2-1/2"]
[ECO "D38"]
[WhiteElo "2177"]
[BlackElo "2365"]
[Annotator "ChessBase"]
[PlyCount "50"]
[EventDate "2023.12.24"]
[EventType "swiss"]
[EventCountry "POL"]
[SourceTitle "playchess.com"]
[Source "ChessBase"]
[SourceQuality "1"]
[TimeControl "40/5400+30:1800+30"]

1. d4 {[%emt 0:06:14]} Nf6 {[%emt 0:00:06]} 2. c4 {[%emt 0:00:17]} e6 {[%emt 0:00:09]} 3. Nf3 {[%emt 0:00:30]} d5 {[%emt 0:00:10]} 4. Nc3 {[%emt 0:00:26]} Bb4 {[%emt 0:00:10]} 5. cxd5 {[%emt 0:01:37]} exd5 {[%emt 0:00:09]} 6. Qa4+ {[%emt 0:00:24]} Nc6 {[%emt 0:00:14]} 7. Bg5 {[%emt 0:00:12]} h6 {[%emt 0:04:05]} 8. Bxf6 {[%emt 0:00:46]} Qxf6 {[%emt 0:00:14]} 9. e3 {[%emt 0:00:08]} O-O {[%emt 0:02:42]} 10. Be2 {[%emt 0:05:22]} Be6 {[%emt 0:22:15]} 11. O-O {[%emt 0:03:53]} a6 {[%emt 0:06:01]} 12. Rfc1 {[%emt 0:06:09]} Bd6 {[%emt 0:06:59]} 13. a3 {[%emt 0:20:06]} Ne7 {[%emt 0:06:40]} 14. b4 {[%emt 0:04:12]} g5 {[%emt 0:07:50]} 15. e4 {[%emt 0:26:32]} dxe4 {[%emt 0:09:07]} 16. Nxe4 {[%emt 0:00:10]} Qf4 {[%emt 0:00:29]} 17. Qc2 {[%emt 0:03:45]} Bf5 {[%emt 0:08:52]} 18. Nf6+ {[%emt 0:03:48]} Kh8 {[%emt 0:05:21]} 19. Qb2 {[%emt 0:01:10]} Be4 {[%emt 0:01:25]} 20. Nxe4 {[%emt 0:03:31]} Qxe4 {[%emt 0:00:09]} 21. Ne5 {[%emt 0:00:23]} Nf5 {[%emt 0:07:01]} 22. Rd1 {[%emt 0:01:12]} Nh4 {[%emt 0:00:22]} 23. Bf1 {[%emt 0:03:37]} f6 {[%emt 0:01:51]} 24. Re1 {[%emt 0:04:20]} Qd5 {[%emt 0:00:24]} 25. Rad1 {[%emt 0:01:22]} Rae8 {[%emt 0:04:46]} 1/2-1/2